fUSD/lending_fUSD_20250214
["ID","MTS","AMOUNT","RATE_DAILY","PERIOD"]
[353107124,1739563839786,-500.0,0.00013698,2]
[353107126,1739563839797,-500.0,0.00013698,2]
[353107129,1739563839807,-500.0,0.00013698,2]
[353107132,1739563839818,-500.95488438,0.00013698,2]
[353107135,1739563839828,-502.42980941,0.00013698,2]
[353107137,1739563839838,-1068.63,0.00013698,2]
[353107139,1739563839849,-503.44331165,0.00013698,2]
[353107141,1739563839859,-575.49,0.00013698,2]
[353107143,1739563839869,-500.0,0.00013698,2]
[353107145,1739563839879,-500.0,0.00013698,2]
[353107148,1739563839889,-500.0,0.00013698,2]
[353107150,1739563839899,-668.43,0.00013698,2]
[353107152,1739563839909,-500.0,0.00013698,2]
[353107154,1739563839919,-500.0,0.00013698,2]
[353107156,1739563839928,-497.72113253,0.00013698,2]
[353107158,1739563839938,-572.87,0.00013698,2]
[353107161,1739563839949,-500.0,0.00013698,2]
[353107163,1739563839959,-616.66128484,0.00013698,2]
[353107165,1739563839968,-501.05452559,0.00013698,2]
[353107167,1739563839978,-738.25,0.00013698,2]
[353107169,1739563839988,-502.62267434,0.00013698,2]
[353107171,1739563839999,-500.0,0.00013698,2]
[353107173,1739563840009,-500.0,0.00013698,2]
[353107175,1739563840020,-500.0,0.00013698,2]
[353107178,1739563840030,-500.0,0.00013698,2]
[353107188,1739563840124,-1304.96,0.00013698,2]
[353107190,1739563840134,-500.0,0.00013698,2]
[353107192,1739563840144,-500.0,0.00013698,2]
[353107194,1739563840154,-883.57,0.00013698,2]
[353107196,1739563840163,-500.0,0.00013698,2]
[353107198,1739563840173,-504.19345658,0.00013698,2]
[353107200,1739563840183,-500.0,0.00013698,2]
[353107202,1739563840192,-500.0,0.00013698,2]
[353107204,1739563840202,-500.0,0.00013698,2]
[353107206,1739563840211,-500.0,0.00013698,2]
[353107208,1739563840220,-618.98,0.00013698,2]
[353107210,1739563840230,-500.0,0.00013698,2]
[353107212,1739563840239,-500.0,0.00013698,2]
[353107214,1739563840252,-573.63,0.00013698,2]
[353107216,1739563840262,-500.0,0.00013698,2]
[353107218,1739563840272,-500.0,0.00013698,2]
[353107220,1739563840281,-508.74063892,0.00013698,2]
[353107222,1739563840291,-640.68,0.00013698,2]
[353107224,1739563840300,-500.0,0.00013698,2]
[353107226,1739563840310,-500.0,0.00013698,2]
[353107228,1739563840319,-500.0,0.00013698,2]
[353107230,1739563840328,-505.41915123,0.00013698,2]
[353107232,1739563840338,-500.0,0.00013698,2]
[353107233,1739563840347,-500.0,0.00013698,2]
[353107234,1739563840359,-500.0,0.00013698,2]
[353107235,1739563840368,-500.0,0.00013698,2]
[353107236,1739563840378,-500.0,0.00013698,2]
[353107237,1739563840387,-500.0,0.00013698,2]
[353107238,1739563840396,-698.97,0.00013698,2]
[353107239,1739563840407,-991.46,0.00013698,2]
[353107240,1739563840416,-500.0,0.00013698,2]
[353107241,1739563840426,-984.87,0.00013698,2]
[353107242,1739563840437,-500.0,0.00013698,2]
[353107244,1739563840447,-1209.25,0.00013698,2]
[353107246,1739563840457,-525.62,0.00013698,2]
[353107248,1739563840466,-500.0,0.00013698,2]
[353107250,1739563840475,-500.0,0.00013698,2]
[353107252,1739563840485,-500.0,0.00013698,2]
[353107254,1739563840496,-500.0,0.00013698,2]
[353107256,1739563840506,-500.0,0.00013698,2]
[353107258,1739563840517,-500.0,0.00013698,2]
[353107260,1739563840526,-536.36,0.00013698,2]
[353107262,1739563840535,-517.54321388,0.00013698,2]
[353107264,1739563840544,-877.73,0.00013698,2]
[353107266,1739563840555,-1372.53,0.00013698,2]
[353107268,1739563840564,-535.57248428,0.00013698,2]
[353107270,1739563840574,-1335.45,0.00013698,2]
[353107272,1739563840584,-500.0,0.00013698,2]
[353107275,1739563840593,-500.0,0.00013698,2]
[353107278,1739563840602,-500.0,0.00013698,2]
[353107280,1739563840612,-519.4,0.00013698,2]
[353107282,1739563840621,-500.0,0.00013698,2]
[353107284,1739563840630,-500.0,0.00013698,2]
[353107286,1739563840639,-502.30728694,0.00013698,2]
[353107288,1739563840648,-500.0,0.00013698,2]
[353107290,1739563840657,-500.0,0.00013698,2]
[353107292,1739563840666,-814.24,0.00013698,2]
[353107294,1739563840676,-502.11696627,0.00013698,2]
[353107295,1739563840685,-893.93,0.00013698,2]
[353107297,1739563840694,-500.0,0.00013698,2]
[353107299,1739563840703,-500.0,0.00013698,2]
[353107301,1739563840712,-500.0,0.00013698,2]
[353107303,1739563840722,-500.0,0.00013698,2]
[353107305,1739563840731,-500.0,0.00013698,2]
[353107307,1739563840741,-500.0,0.00013698,2]
[353107309,1739563840750,-980.55,0.00013698,2]
[353107311,1739563840759,-500.0,0.00013698,2]
[353107313,1739563840768,-500.0,0.00013698,2]
[353107315,1739563840779,-500.0,0.00013698,2]
[353107317,1739563840788,-500.0,0.00013698,2]
[353107319,1739563840797,-505.29741205,0.00013698,2]
[353107321,1739563840806,-500.0,0.00013698,2]
[353107323,1739563840815,-500.0,0.00013698,2]
[353107325,1739563840824,-2647.93,0.00013698,2]
[353107327,1739563840834,-500.0,0.00013698,2]
[353107329,1739563840843,-500.0,0.00013698,2]
[353107331,1739563840852,-500.0,0.00013698,2]
[353107333,1739563840862,-624.08,0.00013698,2]
[353107335,1739563840871,-500.0,0.00013698,2]
[353107337,1739563840882,-501.66884814,0.00013698,2]
[353107339,1739563840891,-500.0,0.00013698,2]
[353107341,1739563840900,-706.55,0.00013698,2]
[353107343,1739563840911,-500.0,0.00013698,2]
[353107345,1739563840921,-585.87,0.00013698,2]
[353107347,1739563840930,-1360.96,0.00013698,2]
[353107349,1739563840940,-500.0,0.00013698,2]
[353107351,1739563840954,-500.0,0.00013698,2]
[353107353,1739563840965,-579.67,0.00013698,2]
[353107355,1739563840974,-500.0,0.00013698,2]
[353107357,1739563840984,-500.75048968,0.00013698,2]
[353107359,1739563840994,-500.0,0.00013698,2]
[353107361,1739563841004,-500.0,0.00013698,2]
[353107363,1739563841013,-500.0,0.00013698,2]
[353107365,1739563841023,-902.8,0.00013698,2]
[353107367,1739563841033,-575.73356275,0.00013698,2]
[353107369,1739563841042,-500.0,0.00013698,2]
[353107371,1739563841051,-500.0,0.00013698,2]
[353107373,1739563841061,-610.71,0.00013698,2]
[353107375,1739563841071,-500.0,0.00013698,2]
[353107377,1739563841081,-501.71974693,0.00013698,2]
[353107379,1739563841090,-500.0,0.00013698,2]
[353107381,1739563841101,-500.0,0.00013698,2]
[353107383,1739563841110,-1001.64,0.00013698,2]
[353107385,1739563841120,-500.0,0.00013698,2]
[353107387,1739563841130,-613.18017707,0.00013698,2]
[353107389,1739563841140,-776.75,0.00013698,2]
[353107391,1739563841150,-987.29,0.00013698,2]
[353107393,1739563841159,-500.0,0.00013698,2]
[353107395,1739563841169,-500.0,0.00013698,2]
[353107397,1739563841178,-919.94,0.00013698,2]
[353107399,1739563841188,-500.0,0.00013698,2]
[353107401,1739563841198,-728.31,0.00013698,2]
[353107403,1739563841208,-500.0,0.00013698,2]
[353107405,1739563841218,-975.51,0.00013698,2]
[353107407,1739563841228,-500.0,0.00013698,2]
[353107409,1739563841238,-1504.69,0.00013698,2]
[353107411,1739563841249,-581.83,0.00013698,2]
[353107413,1739563841259,-500.0,0.00013698,2]
[353107415,1739563841269,-500.0,0.00013698,2]
[353107417,1739563841279,-500.0,0.00013698,2]
[353107419,1739563841288,-500.0,0.00013698,2]
[353107421,1739563841298,-500.0,0.00013698,2]
[353107423,1739563841309,-500.0,0.00013698,2]
[353107425,1739563841318,-504.30501241,0.00013698,2]
[353107427,1739563841328,-500.0,0.00013698,2]
[353107429,1739563841337,-500.0,0.00013698,2]
[353107431,1739563841346,-500.0,0.00013698,2]
[353107433,1739563841357,-500.0,0.00013698,2]
[353107435,1739563841372,-1633.3,0.00013698,2]
[353107437,1739563841381,-518.74,0.00013698,2]
[353107439,1739563841391,-500.0,0.00013698,2]
[353107441,1739563841402,-392.79118974,0.00013698,2]
[353107443,1739563841412,-500.0,0.00013698,2]
[353107445,1739563841422,-500.0,0.00013698,2]
[353107447,1739563841433,-500.0,0.00013698,2]
[353107449,1739563841444,-622.4,0.00013698,2]
[353107451,1739563841453,-500.0,0.00013698,2]
[353107453,1739563841463,-502.16547714,0.00013698,2]
[353107455,1739563841472,-500.0,0.00013698,2]
[353107457,1739563841483,-823.68,0.00013698,2]
[353107459,1739563841493,-848.64,0.00013698,2]
[353107461,1739563841503,-500.0,0.00013698,2]
[353107463,1739563841512,-500.0,0.00013698,2]
[353107465,1739563841522,-500.0,0.00013698,2]
[353107467,1739563841532,-1282.24,0.00013698,2]
[353107469,1739563841543,-500.0,0.00013698,2]
[353107471,1739563841552,-500.0,0.00013698,2]
[353107473,1739563841562,-499.49903961,0.00013698,2]
[353107475,1739563841572,-500.0,0.00013698,2]
[353107477,1739563841581,-500.0,0.00013698,2]
[353107479,1739563841590,-1711.64,0.00013698,2]
[353107481,1739563841601,-500.0,0.00013698,2]
[353107483,1739563841610,-500.0,0.00013698,2]
[353107485,1739563841620,-500.0,0.00013698,2]
[353107487,1739563841629,-500.0,0.00013698,2]
[353107489,1739563841638,-787.78,0.00013698,2]
[353107491,1739563841647,-500.0,0.00013698,2]
[353107493,1739563841656,-500.0,0.00013698,2]
[353107495,1739563841665,-500.0,0.00013698,2]
[353107497,1739563841675,-500.0,0.00013698,2]
[353107499,1739563841685,-207.33816785,0.00013698,2]
[353107501,1739563841694,-500.0,0.00013698,2]
[353107503,1739563841704,-500.0,0.00013698,2]
[353107505,1739563841713,-500.0,0.00013698,2]
[353107507,1739563841723,-501.12562299,0.00013698,2]
[353107509,1739563841733,-500.0,0.00013698,2]
[353107511,1739563841742,-878.18,0.00013698,2]
[353107513,1739563841752,-500.0,0.00013698,2]
[353107515,1739563841763,-500.0,0.00013698,2]
[353107517,1739563841772,-500.0,0.00013698,2]
[353107519,1739563841782,-500.0,0.00013698,2]
[353107521,1739563841791,-500.0,0.00013698,2]
[353107523,1739563841801,-663.1,0.00013698,2]
[353107525,1739563841811,-500.0,0.00013698,2]
[353107527,1739563841821,-519.00121101,0.00013698,2]
[353107529,1739563841830,-500.0,0.00013698,2]
[353107531,1739563841840,-500.0,0.00013698,2]
[353107533,1739563841850,-500.0,0.00013698,2]
[353107535,1739563841859,-1374.74,0.00013698,2]
[353107537,1739563841869,-500.0,0.00013698,2]
[353107539,1739563841879,-500.0,0.00013698,2]
[353107541,1739563841890,-1965.42,0.00013698,2]
[353107543,1739563841900,-500.0,0.00013698,2]
[353107544,1739563841910,-1402.88,0.00013698,2]
[353107545,1739563841919,-500.0,0.00013698,2]
[353107546,1739563841929,-500.0,0.00013698,2]
[353107547,1739563841938,-512.13948168,0.00013698,2]
[353107548,1739563841948,-500.0,0.00013698,2]
[353107549,1739563841959,-511.13085923,0.00013698,2]
[353107550,1739563841968,-822.86,0.00013698,2]
[353107551,1739563841978,-503.63567066,0.00013698,2]
[353107552,1739563841987,-635.77,0.00013698,2]
[353107554,1739563841998,-1627.29,0.00013698,2]
[353107555,1739563842007,-500.0,0.00013698,2]
[353107557,1739563842017,-510.34030531,0.00013698,2]
[353107559,1739563842027,-500.0,0.00013698,2]
[353107561,1739563842036,-500.0,0.00013698,2]
[353107563,1739563842046,-500.0,0.00013698,2]
[353107565,1739563842055,-500.0,0.00013698,2]
[353107567,1739563842064,-500.0,0.00013698,2]
[353107569,1739563842074,-968.89,0.00013698,2]
[353107571,1739563842084,-577.1,0.00013698,2]
[353107573,1739563842094,-500.0,0.00013698,2]
[353107575,1739563842103,-655.39,0.00013698,2]
[353107577,1739563842113,-500.0,0.00013698,2]
[353107579,1739563842122,-155.937293,0.00013698,2]
[353107581,1739563842132,-500.0,0.00013698,2]
[353107583,1739563842143,-501.48136782,0.00013698,2]
[353107585,1739563842153,-500.0,0.00013698,2]
[353107587,1739563842162,-510.83932903,0.00013698,2]
[353107589,1739563842173,-814.03,0.00013698,2]
[353107591,1739563842184,-748.91,0.00013698,2]
[353107593,1739563842193,-500.0,0.00013698,2]
[353107595,1739563842203,-505.93114292,0.00013698,2]
[353107597,1739563842212,-504.81065765,0.00013698,2]
[353107599,1739563842221,-500.0,0.00013698,2]
[353107601,1739563842230,-500.0,0.00013698,2]
[353107603,1739563842240,-501.65592129,0.00013698,2]
[353107605,1739563842250,-529.89230449,0.00013698,2]
[353107607,1739563842259,-735.84,0.00013698,2]
[353107609,1739563842268,-500.0,0.00013698,2]
[353107611,1739563842278,-1560.32,0.00013698,2]
[353107613,1739563842287,-1807.63,0.00013698,2]
[353107615,1739563842297,-500.0,0.00013698,2]
[353107617,1739563842306,-507.40484457,0.00013698,2]
[353107619,1739563842315,-500.0,0.00013698,2]
[353107621,1739563842324,-500.0,0.00013698,2]
[353107623,1739563842334,-506.63612417,0.00013698,2]
[353107625,1739563842343,-2596.59,0.00013698,2]
[353107627,1739563842354,-500.0,0.00013698,2]
[353107629,1739563842367,-500.0,0.00013698,2]
[353107631,1739563842377,-500.0,0.00013698,2]
[353107632,1739563842387,-763.37,0.00013698,2]
[353107634,1739563842396,-500.0,0.00013698,2]
[353107636,1739563842406,-500.0,0.00013698,2]
[353107638,1739563842415,-787.22,0.00013698,2]
[353107641,1739563842427,-500.0,0.00013698,2]
[353107643,1739563842438,-503.98157637,0.00013698,2]
[353107644,1739563842448,-500.0,0.00013698,2]
[353107646,1739563842458,-500.0,0.00013698,2]
[353107648,1739563842467,-500.0,0.00013698,2]
[353107650,1739563842478,-505.69668164,0.00013698,2]
[353107652,1739563842487,-503.90037763,0.00013698,2]
[353107654,1739563842497,-502.21044578,0.00013698,2]
[353107656,1739563842507,-500.0,0.00013698,2]
[353107658,1739563842517,-1229.5,0.00013698,2]
[353107660,1739563842527,-500.0,0.00013698,2]
[353107662,1739563842536,-500.0,0.00013698,2]
[353107664,1739563842546,-162.3038167,0.00013698,2]
[353107666,1739563842555,-1636.31,0.00013698,2]
[353107668,1739563842565,-608.18226081,0.00013698,2]
[353107670,1739563842574,-508.00823999,0.00013698,2]
[353107672,1739563842584,-790.1,0.00013698,2]
[353107674,1739563842594,-501.13028311,0.00013698,2]
[353107676,1739563842604,-500.0,0.00013698,2]
[353107678,1739563842614,-500.0,0.00013698,2]
[353107680,1739563842624,-2044.686389,0.00013698,2]
[353107682,1739563842634,-500.0,0.00013698,2]
[353107684,1739563842643,-500.0,0.00013698,2]
[353107686,1739563842653,-500.0,0.00013698,2]
[353107688,1739563842662,-1878.57,0.00013698,2]
[353107690,1739563842672,-707.21,0.00013698,2]
[353107692,1739563842682,-500.0,0.00013698,2]
[353107694,1739563842691,-500.0,0.00013698,2]
[353107696,1739563842700,-953.31,0.00013698,2]
[353107698,1739563842710,-500.0,0.00013698,2]
[353107700,1739563842719,-500.0,0.00013698,2]
[353107702,1739563842728,-1018.1,0.00013698,2]
[353107705,1739563842738,-1364.44,0.00013698,2]
[353107707,1739563842748,-500.0,0.00013698,2]
[353107709,1739563842759,-1211.82,0.00013698,2]
[353107711,1739563842768,-500.0,0.00013698,2]
[353107713,1739563842778,-661.68,0.00013698,2]
[353107715,1739563842789,-209.80517438,0.00013698,2]
[353107718,1739563842798,-500.0,0.00013698,2]
[353107720,1739563842808,-500.0,0.00013698,2]
[353107722,1739563842819,-500.0,0.00013698,2]
[353107724,1739563842828,-500.0,0.00013698,2]
[353107726,1739563842838,-4284.85,0.00013698,2]
[353107729,1739563842848,-500.0,0.00013698,2]
[353107731,1739563842858,-3602.81,0.00013698,2]
[353107733,1739563842868,-500.0,0.00013698,2]
[353107735,1739563842877,-1055.89,0.00013698,2]
[353107737,1739563842887,-500.0,0.00013698,2]
[353107739,1739563842897,-1822.84,0.00013698,2]
[353107742,1739563842907,-500.0,0.00013698,2]
[353107745,1739563842917,-521.88,0.00013698,2]
[353107748,1739563842927,-1380.9,0.00013698,2]
[353107750,1739563842937,-500.0,0.00013698,2]
[353107752,1739563842947,-500.0,0.00013698,2]
[353107754,1739563842957,-500.0,0.00013698,2]
[353107757,1739563842967,-500.0,0.00013698,2]
[353107760,1739563842978,-502.52672633,0.00013698,2]
[353107763,1739563842988,-500.0,0.00013698,2]
[353107766,1739563842999,-500.0,0.00013698,2]
[353107769,1739563843008,-2099.924062,0.00013698,2]
[353107772,1739563843019,-672.2,0.00013698,2]
[353107775,1739563843028,-503.63074802,0.00013698,2]
[353107779,1739563843038,-579.58974793,0.00013698,2]
[353107782,1739563843047,-504.4206134,0.00013698,2]
[353107786,1739563843057,-1817.13,0.00013698,2]
[353107790,1739563843067,-500.0,0.00013698,2]
[353107793,1739563843077,-501.06937479,0.00013698,2]
[353107796,1739563843087,-569.83,0.00013698,2]
[353107799,1739563843097,-500.0,0.00013698,2]
[353107802,1739563843106,-509.46,0.00013698,2]
[353107805,1739563843116,-1973.5,0.00013698,2]
[353107808,1739563843125,-2885.76,0.00013698,2]
[353107811,1739563843135,-1999.09,0.00013698,2]
[353107814,1739563843145,-500.0,0.00013698,2]
[353107817,1739563843155,-161.301757,0.00013698,2]
[353107820,1739563843165,-503.47537529,0.00013698,2]
[353107823,1739563843174,-500.0,0.00013698,2]
[353107826,1739563843184,-502.02628879,0.00013698,2]
[353107829,1739563843195,-1754.23,0.00013698,2]
[353107832,1739563843205,-722.58,0.00013698,2]
[353107835,1739563843215,-3163.54,0.00013698,2]
[353107838,1739563843224,-500.0,0.00013698,2]
[353107841,1739563843234,-777.3,0.00013698,2]
[353107844,1739563843244,-500.0,0.00013698,2]
[353107847,1739563843255,-500.0,0.00013698,2]
[353107850,1739563843265,-504.13178867,0.00013698,2]
[353107853,1739563843274,-500.0,0.00013698,2]
[353107856,1739563843284,-1081.68,0.00013698,2]
[353107859,1739563843294,-500.0,0.00013698,2]
[353107861,1739563843303,-500.0,0.00013698,2]
[353107863,1739563843313,-500.0,0.00013698,2]
[353107865,1739563843322,-370.89824853,0.00013698,2]
[353107867,1739563843332,-502.19357559,0.00013698,2]
[353107870,1739563843342,-3073.51,0.00013698,2]
[353107872,1739563843351,-1849.21,0.00013698,2]
[353107874,1739563843361,-1876.88,0.00013698,2]
[353107875,1739563843373,-504.01493365,0.00013698,2]
[353107876,1739563843382,-500.0,0.00013698,2]
[353107877,1739563843391,-1636.36,0.00013698,2]
[353107878,1739563843401,-500.0,0.00013698,2]
[353107879,1739563843411,-684.82,0.00013698,2]
[353107880,1739563843420,-502.64416181,0.00013698,2]
[353107881,1739563843430,-500.0,0.00013698,2]
[353107882,1739563843440,-3451.8,0.00013698,2]
[353107883,1739563843451,-1258.75,0.00013698,2]
[353107885,1739563843460,-500.0,0.00013698,2]
[353107887,1739563843469,-504.11382492,0.00013698,2]
[353107889,1739563843479,-500.0,0.00013698,2]
[353107891,1739563843488,-2313.09,0.00013698,2]
[353107893,1739563843498,-525.63,0.00013698,2]
[353107896,1739563843508,-500.0,0.00013698,2]
[353107899,1739563843517,-500.0,0.00013698,2]
[353107902,1739563843526,-500.0,0.00013698,2]
[353107905,1739563843536,-2440.88,0.00013698,2]
[353107907,1739563843545,-594.57,0.00013698,2]
[353107908,1739563843555,-731.72,0.00013698,2]
[353107909,1739563843564,-498.0901944,0.00013698,2]
[353107910,1739563843573,-641.14,0.00013698,2]
[353107911,1739563843582,-2262.39,0.00013698,2]
[353107912,1739563843592,-500.0,0.00013698,2]
[353107913,1739563843601,-505.42921552,0.00013698,2]
[353107914,1739563843610,-500.0,0.00013698,2]
[353107915,1739563843620,-500.0,0.00013698,2]
[353107916,1739563843629,-500.0,0.00013698,2]
[353107917,1739563843639,-586.12,0.00013698,2]
[353107918,1739563843648,-500.0,0.00013698,2]
[353107919,1739563843657,-2756.09,0.00013698,2]
[353107920,1739563843667,-501.61885451,0.00013698,2]
[353107921,1739563843677,-498.17609708,0.00013698,2]
[353107922,1739563843687,-500.0,0.00013698,2]
[353107923,1739563843696,-565.96,0.00013698,2]
[353107924,1739563843706,-500.0,0.00013698,2]
[353107925,1739563843716,-500.0,0.00013698,2]
[353107926,1739563843725,-504.94289247,0.00013698,2]
[353107927,1739563843735,-500.0,0.00013698,2]
[353107928,1739563843746,-500.0,0.00013698,2]
[353107929,1739563843757,-500.0,0.00013698,2]
[353107930,1739563843766,-505.86820311,0.00013698,2]
[353107932,1739563843776,-1602.34,0.00013698,2]
[353107933,1739563843786,-500.0,0.00013698,2]
[353107935,1739563843794,-500.0,0.00013698,2]
[353107937,1739563843804,-500.0,0.00013698,2]
[353107939,1739563843814,-500.0,0.00013698,2]
[353107941,1739563843823,-1958.29,0.00013698,2]
[353107943,1739563843833,-500.0,0.00013698,2]
[353107945,1739563843842,-500.0,0.00013698,2]
[353107947,1739563843852,-2803.98,0.00013698,2]
[353107949,1739563843862,-524.12038894,0.00013698,2]
[353107951,1739563843872,-500.0,0.00013698,2]
[353107953,1739563843882,-500.0,0.00013698,2]
[353107955,1739563843892,-501.55891517,0.00013698,2]
[353107957,1739563843902,-835.64,0.00013698,2]
[353107959,1739563843911,-501.79763764,0.00013698,2]
[353107961,1739563843921,-500.0,0.00013698,2]
[353107963,1739563843930,-500.0,0.00013698,2]
[353107964,1739563843940,-500.0,0.00013698,2]
[353107967,1739563843950,-500.0,0.00013698,2]
[353107969,1739563843959,-4057.02,0.00013698,2]
[353107971,1739563843969,-2038.26,0.00013698,2]
[353107973,1739563843979,-1055.1,0.00013698,2]
[353107975,1739563843989,-1332.83,0.00013698,2]
[353107977,1739563844000,-500.0,0.00013698,2]
[353107979,1739563844010,-1763.2,0.00013698,2]
[353107981,1739563844020,-500.0,0.00013698,2]
[353107983,1739563844030,-500.0,0.00013698,2]
[353107985,1739563844039,-502.63442897,0.00013698,2]
[353107987,1739563844049,-552.94972952,0.00013698,2]
[353107989,1739563844059,-500.0,0.00013698,2]
[353107991,1739563844069,-3381.25,0.00013698,2]
[353107993,1739563844079,-500.0,0.00013698,2]
[353107995,1739563844088,-500.0,0.00013698,2]
[353107997,1739563844098,-500.0,0.00013698,2]
[353107999,1739563844108,-500.0,0.00013698,2]
[353108001,1739563844118,-761.43,0.00013698,2]
[353108003,1739563844128,-500.0,0.00013698,2]
[353108005,1739563844138,-502.11111972,0.00013698,2]
[353108007,1739563844147,-2360.83,0.00013698,2]
[353108009,1739563844157,-3279.48,0.00013698,2]
[353108011,1739563844167,-1107.76,0.00013698,2]
[353108013,1739563844178,-1488.96,0.00013698,2]
[353108015,1739563844188,-1740.63,0.00013698,2]
[353108017,1739563844198,-500.0,0.00013698,2]
[353108019,1739563844208,-500.0,0.00013698,2]
[353108021,1739563844218,-500.0,0.00013698,2]
[353108023,1739563844228,-2916.96,0.00013698,2]
[353108025,1739563844238,-500.0,0.00013698,2]
[353108027,1739563844248,-500.0,0.00013698,2]
[353108029,1739563844257,-500.0,0.00013698,2]
[353108031,1739563844267,-500.0,0.00013698,2]
[353108033,1739563844276,-500.0,0.00013698,2]
[353108047,1739563844410,-500.0,0.00013698,2]
[353108049,1739563844420,-500.0,0.00013698,2]
[353108051,1739563844430,-504.47468357,0.00013698,2]
[353108054,1739563844442,-500.0,0.00013698,2]
[353108056,1739563844451,-500.0,0.00013698,2]
[353108057,1739563844461,-1806.9,0.00013698,2]
[353108058,1739563844470,-500.0,0.00013698,2]
[353108059,1739563844479,-504.07158839,0.00013698,2]
[353108060,1739563844488,-5082.1,0.00013698,2]
[353108061,1739563844498,-503.81897405,0.00013698,2]
[353108062,1739563844508,-713.2,0.00013698,2]
[353108063,1739563844518,-500.0,0.00013698,2]
[353108064,1739563844529,-500.0,0.00013698,2]
[353108065,1739563844540,-2918.13,0.00013698,2]
[353108066,1739563844550,-6582.72,0.00013698,2]
[353108068,1739563844561,-1998.38,0.00013698,2]
[353108070,1739563844570,-500.0,0.00013698,2]
[353108072,1739563844580,-500.0,0.00013698,2]
[353108074,1739563844590,-500.0,0.00013698,2]
[353108076,1739563844600,-501.53352177,0.00013698,2]
[353108078,1739563844611,-500.0,0.00013698,2]
[353108080,1739563844621,-500.0,0.00013698,2]
[353108082,1739563844631,-264.5790856,0.00013698,2]
[353108084,1739563844641,-913.59,0.00013698,2]
[353108086,1739563844652,-500.0,0.00013698,2]
[353108088,1739563844662,-3560.44,0.00013698,2]
[353108090,1739563844671,-500.0,0.00013698,2]
[353108092,1739563844681,-500.0,0.00013698,2]
[353108094,1739563844691,-503.59786862,0.00013698,2]
[353108096,1739563844700,-500.0,0.00013698,2]
[353108098,1739563844709,-575.9045762,0.00013698,2]
[353108100,1739563844720,-2986.15,0.00013698,2]
[353108102,1739563844729,-3033.09,0.00013698,2]
[353108104,1739563844738,-501.86669484,0.00013698,2]
[353108106,1739563844748,-5014.83,0.00013698,2]
[353108108,1739563844758,-2105.33,0.00013698,2]
[353108110,1739563844767,-500.0,0.00013698,2]
[353108112,1739563844778,-1872.73,0.00013698,2]
[353108114,1739563844787,-4493.7,0.00013698,2]
[353108116,1739563844798,-503.75568131,0.00013698,2]
[353108118,1739563844808,-500.0,0.00013698,2]
[353108120,1739563844818,-1363.47,0.00013698,2]
[353108122,1739563844827,-500.0,0.00013698,2]
[353108124,1739563844837,-2267.94,0.00013698,2]
[353108126,1739563844846,-1318.39,0.00013698,2]
[353108128,1739563844856,-524.87,0.00013698,2]
[353108130,1739563844866,-749.42,0.00013698,2]
[353108132,1739563844875,-500.0,0.00013698,2]
[353108134,1739563844885,-500.0,0.00013698,2]